fUSD/lending_fUSD_20240109
["ID","MTS","AMOUNT","RATE_DAILY","PERIOD"]
[310893991,1704802233013,-900.0,0.00023,2]
[310893992,1704802233025,-3952.82690259,0.00023,2]
[310893993,1704802233150,-759.0,0.00023,2]
[310894000,1704802238254,-2990.64555306,0.00023,2]
[310894001,1704802238282,-259.56812837,0.00023,2]
[310894002,1704802238294,-1285.22235789,0.00023,2]
[310894003,1704802238306,-951.26132272,0.00023,2]
[310894004,1704802238317,-2113.55478462,0.00023,2]
[310894005,1704802238410,-41759.84219842,0.00023,2]
[310894006,1704802238523,-3124.01825964,0.00023,2]
[310894007,1704802238539,-405584.3296547,0.00023,2]
[310894172,1704802240635,-323.69084001,0.00022897,2]
[310894174,1704802240645,-137.9491621,0.00023,2]
[310894279,1704802241923,-5885.64312233,0.00023,2]
[310894280,1704802241936,-560.0,0.00023,2]
[310894281,1704802241949,-4310.74201782,0.00023,2]
[310894282,1704802242195,-15155.76882393,0.00023,2]
[310894283,1704802242396,-2241.0880573,0.00023,2]
[310894284,1704802242408,-685.64024499,0.00023,2]
[310894285,1704802242422,-4124.65867638,0.00023,2]
[310894338,1704802243535,-77899.06576254,0.00023,2]
[310894340,1704802243545,-159.88630664,0.00023,2]
[310894342,1704802243555,-212.74305184,0.00023,2]
[310894344,1704802243565,-371.60102935,0.00023,2]
[310894346,1704802243574,-197.30585139,0.00023,2]
[310894347,1704802243584,-156.19752965,0.00023,2]
[310894348,1704802243594,-155.16332301,0.00023,2]
[310894349,1704802243603,-256.41056878,0.00023,2]
[310894350,1704802243613,-854.8821237,0.00023,2]
[310894351,1704802243622,-212621.33381676,0.00023,2]
[310894352,1704802243641,-156291.21542978,0.00023,2]
[310894353,1704802243652,-358728.71636233,0.00023,2]
[310894354,1704802243675,-702.5190202,0.00023,2]
[310894355,1704802243697,-4667.62222412,0.00023,2]
[310894356,1704802243720,-18539.35423727,0.00023,2]
[310894365,1704802246301,-306.67142179,0.00022999,2]
[310894366,1704802246467,-2016.43225348,0.00022999,2]
[310894367,1704802246477,-5284.25470215,0.00023,2]
[310894368,1704802246489,-6176.37203127,0.00023,2]
[310894369,1704802246501,-8276.55654988,0.00023,2]
[310894370,1704802246514,-41593.13963883,0.00023,2]
[310894371,1704802246526,-17436.83329014,0.00023,2]
[310894372,1704802246543,-360.34423684,0.00023,2]
[310894373,1704802246555,-2499.16971345,0.00023,2]
[310894374,1704802246584,-220744.99999995,0.00023,2]
[310894375,1704802246597,-14716.30464352,0.00023,2]
[310894380,1704802249371,155.89,0.00020941,2]
[310894381,1704802263435,1000.0,0.00022308,2]
[310894382,1704802265083,525.33230663,0.00022999,7]
[310894383,1704802398945,200.89,0.0002234,2]
[310894384,1704802452282,167.52,0.00022315,2]
[310894385,1704802546085,97.74961099,0.00022315,2]
[310894386,1704802546114,466.15961099,0.00022315,2]
[310894387,1704802546144,68.99077802,0.00022315,2]
[310894388,1704802554082,237.26198864,0.00022,2]
[310894389,1704802637518,159.90684433,0.00022,2]
[310894390,1704802637542,345.99867171,0.00022,2]
[310894391,1704802683486,120.16093928,0.00020397,2]
[310894392,1704802683511,35.72906072,0.00020397,2]
[310894393,1704802849555,187.49,0.000222,2]
[310894394,1704802948184,242.94055027,0.000225,2]
[310894395,1704802948206,466.15961099,0.000225,2]
[310894396,1704802948229,466.15961099,0.000225,2]
[310894397,1704802948252,0.18970263,0.000225,2]
[310894398,1704802956083,465.96990836,0.00022499,2]
[310894399,1704802956114,466.15961099,0.00022499,2]
[310894400,1704802956141,466.15961099,0.00022499,2]
[310894401,1704802956169,466.15961099,0.00022499,2]
[310894402,1704802956194,458.65493394,0.00022499,2]
[310894403,1704802972437,7.50467705,0.00022186,2]
[310894404,1704802972461,466.15961099,0.00022186,2]
[310894405,1704802972485,466.15961099,0.00022186,2]
[310894406,1704802972509,466.15961099,0.00022186,2]
[310894407,1704802972533,466.15961099,0.00022186,2]
[310894408,1704802972556,466.15961099,0.00022186,2]
[310894409,1704802972581,139.167268,0.00022186,2]
[310894410,1704802985807,326.99234299,0.00022207,2]
[310894411,1704802985836,166.68765701,0.00022207,2]
[310894412,1704803000527,157.19,0.00022353,2]
[310894413,1704803014916,142.28195398,0.00022156,2]
[310894414,1704803014942,21.68804602,0.00022156,2]
[310894415,1704803103169,155.89,0.00020283,2]
[310894416,1704803123476,157.12,0.00022395,2]
[310894417,1704803204434,200.0,0.00022172,2]
[310894418,1704803214991,-150.0,0.00022628,2]
[310894419,1704803273229,197.8,0.00022195,2]
[310894420,1704803289540,500.0,0.00022173,2]
[310894421,1704803298922,719.0,0.00022542,2]
[310894432,1704803335519,167.97,0.00022185,2]
[310894446,1704803387617,161.7,0.00022206,2]
[310894453,1704803423998,157.19,0.00022287,2]
[310894475,1704803431368,-159.49650933,0.0002267,2]
[310894476,1704803431377,-157.19,0.00022674,2]
[310894477,1704803431386,-122.93597025,0.000228,2]
[310894478,1704803431470,-98.72902975,0.000228,2]
[310894479,1704803431479,-263.37231015,0.00022815,2]
[310894480,1704803431652,-2059.73136512,0.00022815,2]
[310894481,1704803431663,-200.0,0.00022816,2]
[310894482,1704803431672,-200.0,0.00022816,2]
[310894483,1704803431682,-800.0,0.00022816,2]
[310894484,1704803431691,-200.0,0.00022816,2]
[310894485,1704803431701,-163.97,0.00022895,2]
[310894486,1704803431710,-300.0,0.00022898,2]
[310894487,1704803431719,-4882.604,0.00022899,2]
[310894488,1704803431729,-2647.6296815,0.000229,2]
[310894489,1704803431738,-76192.67338217,0.000229,2]
[310894541,1704803435080,177.31,0.00022141,2]
[310894542,1704803436206,4401.67,0.00022568,2]
[310894545,1704803437462,-1997.2320567,0.000229,2]
[310894546,1704803437474,-6699.52610357,0.000229,2]
[310894547,1704803437524,-430.0,0.000229,2]
[310894548,1704803437626,-696.06399201,0.000229,2]
[310894654,1704803440540,-49110.65095979,0.000229,2]
[310894655,1704803440704,-270.1999996,0.000229,2]
[310894656,1704803440762,-383.75430893,0.000229,2]
[310894664,1704803441435,-22509.39484835,0.000229,2]
[310894665,1704803441446,-43580.07238761,0.000229,2]
[310894668,1704803442347,-831.48450349,0.000229,2]
[310894669,1704803442398,-877.23058784,0.000229,2]
[310894670,1704803442411,-1928.13643999,0.000229,2]
[310894671,1704803442423,-689.93119256,0.000229,2]
[310894672,1704803442436,-3695.4,0.000229,2]
[310894673,1704803442447,-993.56644484,0.000229,2]
[310894674,1704803442510,-1102.24395468,0.000229,2]
[310894675,1704803442617,-541.65362309,0.000229,2]
[310894676,1704803442629,-15692.737584,0.000229,2]
[310894677,1704803442647,-1722.13581197,0.000229,2]
[310894678,1704803442658,-2651.31362016,0.000229,2]
[310894679,1704803442670,-391.25088395,0.000229,2]
[310894680,1704803442702,-5917.37302096,0.000229,2]
[310894681,1704803442713,-5979.1412971,0.000229,2]
[310894682,1704803442725,-393.25982826,0.000229,2]
[310894684,1704803445499,-4512.84646658,0.000229,2]
[310894685,1704803445511,-13275.07243779,0.000229,2]
[310894686,1704803445522,-1322.68616832,0.000229,2]
[310894687,1704803445534,-12944.31968767,0.000229,2]
[310894688,1704803445546,-17763.05520326,0.000229,2]
[310894689,1704803445557,-68596.42987741,0.000229,2]
[310894690,1704803445585,-1017.22330267,0.000229,2]
[310894691,1704803445597,-378.41523539,0.000229,2]
[310894692,1704803445608,-255.55620408,0.000229,2]
[310894693,1704803445677,-296.09272813,0.000229,2]
[310894694,1704803445741,-15494.49291456,0.000229,2]
[310894695,1704803445753,-524.75407392,0.000229,2]
[310894696,1704803445764,-1458.65851852,0.000229,2]
[310894697,1704803445776,-978.64808177,0.000229,2]
[310894698,1704803445805,-2455.04708258,0.000229,2]
[310894699,1704803451230,526.21081371,0.00022998,7]
[310894700,1704803467271,255.56076767,0.00022997,7]
[310894701,1704803502445,155.68563984,0.00020697,2]
[310894702,1704803508037,310.47397115,0.0002224,2]
[310894703,1704803508061,294.57602885,0.0002224,2]
[310894704,1704803522448,171.58358214,0.00022211,2]
[310894705,1704803522474,37.19641786,0.00022211,2]
[310894706,1704803551156,153.87,0.00020223,2]
[310894707,1704803559666,275.09319313,0.00022,3]
[310894708,1704803559691,466.15961099,0.00022,3]
[310894709,1704803559716,466.15961099,0.00022,3]
[310894710,1704803559743,466.15961099,0.00022,3]
[310894711,1704803559767,466.15961099,0.00022,3]
[310894712,1704803559792,110.26836291,0.00022,3]
[310894713,1704803561892,5000.0,0.000301,90]
[310894715,1704803699488,201.56,0.00022112,2]
[310894716,1704803789357,154.33124808,0.00022159,2]
[310894717,1704803789384,53.07875192,0.00022159,2]
[310894718,1704803853777,204.0,0.00021675,2]
[310894719,1704803865923,209.08085907,0.00022,2]
[310894720,1704803865946,47.18914093,0.00022,2]
[310894721,1704803867196,256.27,0.00022137,2]
[310894722,1704803868514,162.70047006,0.00022274,2]
[310894723,1704803868539,338.10952994,0.00022274,2]
[310894724,1704803913287,128.05008105,0.00022266,2]
[310894725,1704803913313,26.55991895,0.00022266,2]
[310894726,1704803913514,154.61,0.00022395,2]
[310894727,1704803913720,154.61,0.00022524,2]
[310894728,1704803979396,130.37969204,0.00022048,2]
[310894729,1704803979420,385.58030796,0.00022048,2]
[310894730,1704803981789,80.57930303,0.00022048,2]
[310894731,1704803981814,325.59069697,0.00022048,2]
[310894732,1704803983882,140.56891402,0.00022048,2]
[310894733,1704803983908,17.93108598,0.00022048,2]
[310894734,1704803984092,158.5,0.00022415,2]
[310894735,1704804049355,153.87,0.00020115,2]
[310894736,1704804168156,312.28961099,0.00021999,2]
[310894737,1704804168180,466.15961099,0.00021999,2]
[310894738,1704804168202,466.15961099,0.00021999,2]
[310894739,1704804168227,466.15961099,0.00021999,2]
[310894740,1704804168250,466.15961099,0.00021999,2]
[310894741,1704804168273,466.15961099,0.00021999,2]
[310894742,1704804168295,466.15961099,0.00021999,2]
[310894743,1704804168318,466.15961099,0.00021999,2]
[310894744,1704804168341,466.15961099,0.00021999,2]
[310894745,1704804168366,466.15961099,0.00021999,2]
[310894746,1704804168390,466.15961099,0.00021999,2]
[310894747,1704804168413,466.15961099,0.00021999,2]
[310894748,1704804168440,2499.47466812,0.00021999,2]
[310894749,1704804194362,200.0,0.00021918,2]
[310894750,1704804200716,800.0,0.00021918,2]
[310894751,1704804208020,200.0,0.00021823,2]
[310894752,1704804221718,193.58,0.00022004,2]
[310894753,1704804435632,154.61,0.00022161,2]
[310894754,1704804436027,154.61,0.00022353,2]
[310894755,1704804436444,154.61,0.00022546,2]
[310894756,1704804446618,587.23,0.00021965,2]
[310894757,1704804482987,153.87,0.00020134,2]
[310894758,1704804500219,544.40683217,0.00021965,7]
[310894759,1704804520184,544.40683217,0.00021965,7]
[310894760,1704804542187,544.40683217,0.00021965,7]
[310894761,1704804560191,583.0812225,0.00021965,7]
[310894762,1704804566233,547.41908623,0.00021837,2]
[310894763,1704804588958,-597.58238471,0.00022736,2]
[310894764,1704804588985,-154.61,0.00022738,2]
[310894765,1704804589010,-2323.10367527,0.00022766,2]
[310894766,1704804589038,-158.5,0.00022783,2]
[310894767,1704804590359,66.20394002,0.00022735,2]
[310894775,1704804606034,252.25108377,0.00020642,2]
[310894776,1704804612415,559.0494248,0.00020412,2]
[310894787,1704804631627,-2097.41534152,0.00022699,2]
[310894788,1704804631639,-1300.0,0.00022699,2]
[310894789,1704804631660,-1170.87002281,0.00022699,2]
[310894790,1704804631710,-9421.42134927,0.00022699,2]
[310894791,1704804631722,-4333.03395779,0.00022699,2]
[310894792,1704804632029,-170827.71531332,0.00022699,2]
[310894793,1704804632062,-201190.16212111,0.00022699,2]
[310894794,1704804632072,-183.28063339,0.000227,2]
[310894795,1704804632082,-280.60641538,0.00022706,2]
[310894796,1704804632091,-88.79605998,0.00022735,2]
[310894797,1704804632101,-300.0,0.00022803,2]
[310894798,1704804632111,-204.0,0.00022868,2]
[310894799,1704804632120,-208.0,0.00022868,2]
[310894800,1704804632130,-424.6498,0.00022897,2]
[310894801,1704804632139,-14010.0,0.00022898,2]
[310894802,1704804632153,-529.1,0.00022899,2]
[310894803,1704804632162,-373143.93578582,0.000229,2]
[310894804,1704804632179,-1594.0,0.000229,2]
[310894805,1704804632199,-94060.77357664,0.000229,2]
[310894806,1704804632214,-18726.0,0.000229,2]
[310894807,1704804632226,-469.145,0.000229,2]
[310894808,1704804632237,-3207.67604351,0.000229,2]
[310894836,1704804637698,-546.28903035,0.00022796,2]
[310894837,1704804637717,-4349.51636965,0.00022796,2]
[310894838,1704804637728,-1111.01235056,0.00022803,2]
[310894839,1704804637739,-66476.85226332,0.000229,2]
[310894840,1704804637752,-358.01197968,0.000229,2]
[310894841,1704804637771,-804.528,0.000229,2]
[310894842,1704804637783,-1736.93311624,0.000229,2]
[310894843,1704804637794,-459.6,0.000229,2]
[310894844,1704804638102,-43678.2169,0.000229,2]
[310894845,1704804638113,-46721.00000002,0.000229,2]
[310894846,1704804638125,-723791.75901904,0.000229,2]
[310894847,1704804638135,-329.09969147,0.000229,2]
[310894848,1704804638144,-3918.0680827,0.000229,2]
[310894849,1704804638156,-204.99891904,0.000229,2]
[310894850,1704804638166,-3044.57,0.000229,2]
[310894851,1704804638175,-42725.0,0.000229,2]
[310894853,1704804638184,-154.61,0.00022931,2]
[310894855,1704804638193,-11317.08791137,0.00022935,2]
[310894857,1704804638202,-2323.10367527,0.00022935,2]
[310894859,1704804638211,-1069.24486769,0.00022935,2]
[310894861,1704804638221,-218.0415339,0.00022935,2]
[310894862,1704804638230,-3926.28285426,0.00022935,2]
[310894864,1704804638239,-11657.61542784,0.00022935,2]
[310894867,1704804638249,-235.67264847,0.00022935,2]
[310894868,1704804638258,-159.316212,0.00022935,2]
[310894870,1704804638267,-548.17213453,0.00022935,2]
[310894872,1704804638276,-156.24785842,0.00022935,2]
[310894875,1704804638285,-302.72152198,0.00022935,2]
[310894877,1704804638294,-554.25927843,0.00022935,2]
[310894879,1704804638303,-246.1670273,0.00022936,2]
[310894881,1704804638313,-2998.91895164,0.00022936,2]
[310894882,1704804638322,-155.40519903,0.00022936,2]
[310894885,1704804638331,-129122.01584086,0.00022937,2]
[310894886,1704804638341,-9276.62467767,0.00022938,2]
[310894888,1704804638350,-383.72,0.00022938,2]
[310894890,1704804638359,-543.95,0.00022939,2]
[310894892,1704804638368,-800.0,0.00022959,2]
[310894894,1704804638377,-193.58,0.00022982,2]
[310894896,1704804638386,-283.24691786,0.00022987,3]
[310894898,1704804638395,-608.93901834,0.00022987,2]
[310894900,1704804638406,-331.18091377,0.00022987,2]
[310894902,1704804638415,-2302.03358731,0.00022987,2]
[310894904,1704804638425,-155.00446036,0.00022988,2]
[310894906,1704804638434,-16732.40708376,0.00022989,2]
[310894908,1704804638443,-181.372,0.0002299,2]
[310894910,1704804638452,-509.586,0.0002299,2]
[310894912,1704804638461,-8121.309,0.0002299,2]
[310894914,1704804638471,-168.133,0.0002299,2]
[310894916,1704804638480,-383.39980938,0.00022996,2]
[310894918,1704804638490,-3117.37725108,0.00022997,2]
[310894921,1704804638499,-892.63814242,0.00022997,2]
[310894923,1704804638508,-208.02980248,0.00022997,2]
[310894924,1704804638517,-220.69241614,0.00022997,2]
[310894927,1704804638527,-233.80752851,0.00022997,2]
[310894928,1704804638536,-259.11478358,0.00022997,2]
[310894930,1704804638546,-255.35750106,0.00022997,2]
[310894932,1704804638555,-531.06,0.00022997,2]
[310894934,1704804638564,-385.00102524,0.00022997,2]
[310894936,1704804638573,-3151.7038,0.00022997,2]
[310894938,1704804638582,-3037.57683783,0.00022997,2]
[310894940,1704804638591,-390.04705579,0.00022997,2]
[310894942,1704804638602,-198.74725172,0.00022997,2]
[310894944,1704804638611,-749.45687653,0.00022997,2]
[310894946,1704804638620,-163.56662215,0.00022997,2]
[310894948,1704804638630,-767.56716434,0.00022997,2]
[310894951,1704804638639,-472.09928176,0.00022997,2]
[310894953,1704804638651,-155.54683003,0.00022997,2]
[310894955,1704804638661,-576.35910875,0.00022997,2]
[310894957,1704804638670,-493.85260773,0.00022997,2]
[310894959,1704804638679,-186.35155735,0.00022997,2]
[310894961,1704804638688,-210.92031935,0.00022997,2]
[310894963,1704804638697,-220.26666446,0.00022997,2]
[310894965,1704804638706,-155.37655705,0.00022997,2]
[310894967,1704804638715,-155.47167839,0.00022997,2]
[310894969,1704804638724,-4680.86238529,0.00022997,2]
[310894971,1704804638733,-369.68840107,0.00022997,2]
[310894973,1704804638742,-937.04818772,0.00022997,2]
[310894974,1704804638752,-1858.12236055,0.00022997,2]
[310894976,1704804638763,-310.2356443,0.00022997,2]
[310894978,1704804638772,-696.21438607,0.00022998,2]
[310894979,1704804638782,-2607.61585498,0.00022998,2]
[310894980,1704804638793,-3026.38966592,0.00022998,2]
[310894981,1704804638802,-5312.2827266,0.00022999,2]
[310894982,1704804638812,-341.84230733,0.00022999,2]
[310894983,1704804638821,-517.67428116,0.00022999,2]
[310894984,1704804638831,-517.67428116,0.00022999,2]
[310894985,1704804638842,-517.67428116,0.00022999,2]
[310894986,1704804638852,-498135.09333816,0.00023,2]
[310894987,1704804638882,-5937.53326872,0.00023,2]
[310894988,1704804638894,-920.345,0.00023,2]
[310894989,1704804638907,-311.84474371,0.00023,2]
[310894990,1704804638919,-960.07784106,0.00023,2]
[310894991,1704804638929,-476.54,0.00023,2]
[310894992,1704804638940,-5125.32973738,0.00023,2]
[310894993,1704804638951,-2293.6778925,0.00023,2]
[310894994,1704804638967,-866.14922883,0.00023,2]
[310894995,1704804638985,-829.099827,0.00023,2]
[310894996,1704804638996,-579.92706057,0.00023,2]
[310894997,1704804639007,-2533.399985,0.00023,2]
[310894998,1704804639018,-1267.65875993,0.00023,2]
[310894999,1704804639046,-261.99999998,0.00023,2]
[310895000,1704804639057,-998.80882928,0.00023,2]
[310895001,1704804639068,-340.1437836,0.00023,2]
[310895006,1704804640132,-1424.40289611,0.00023,2]
[310895007,1704804640144,-10132.4960844,0.00023,2]
[310895008,1704804640161,-1974.71067981,0.00023,2]
[310895009,1704804640204,-591.27639412,0.00023,2]
[310895010,1704804640215,-1942.37721319,0.00023,2]
[310895011,1704804640226,-289.96267146,0.00023,2]
[310895012,1704804640927,-523.75608307,0.00022795,2]
[310895013,1704804640937,-393095.32825642,0.00023,2]
[310895014,1704804640948,-122662.73028926,0.00023,2]
[310895015,1704804640960,-368.0889127,0.00023,2]
[310895016,1704804640971,-4892.6045102,0.00023,2]
[310895017,1704804640982,-3602.21195516,0.00023,2]
[310895019,1704804640993,-4128.63986883,0.00023,2]
[310895021,1704804641005,-3933.36463944,0.00023,2]
[310895022,1704804641016,-4432.26839026,0.00023,2]
[310895023,1704804641028,-3986.2815106,0.00023,2]
[310895024,1704804641039,-12915.68685511,0.00023,2]
[310895025,1704804641051,-507.65898413,0.00023,2]
[310895026,1704804641062,-559.17187775,0.00023,2]
[310895027,1704804641083,-1145.7,0.00023,2]
[310895028,1704804641095,-1491.91095807,0.00023,2]
[310895029,1704804641106,-720.54062004,0.00023,2]
[310895030,1704804641117,-1075.51440885,0.00023,2]
[310895031,1704804641129,-23871.47623088,0.00023,2]
[310895032,1704804641140,-598.44913979,0.00023,2]
[310895034,1704804642755,-559.19420109,0.00022794,2]
[310895035,1704804642766,-495.88405497,0.00022794,2]
[310895036,1704804642820,-1267.65978764,0.00022794,2]
[310895037,1704804642829,-333.73084503,0.00022795,2]
[310895038,1704804643077,-162.4414931,0.00022795,2]
[310895039,1704804643087,-602.7208422,0.00023,2]
[310895040,1704804643099,-5630.56545007,0.00023,2]
[310895041,1704804643110,-955.09207784,0.00023,2]
[310895042,1704804643121,-11692.7200143,0.00023,2]
[310895043,1704804643132,-396.38676567,0.00023,2]
[310895044,1704804643144,-10000.0,0.00023,2]
[310895045,1704804643157,-316.19458549,0.00023,2]
[310895046,1704804643176,-419.87653924,0.00023,2]
[310895047,1704804643188,-637.84853028,0.00023,2]
[310895048,1704804643199,-37037.14051899,0.00023,2]
[310895049,1704804643242,-328.32741597,0.00023,2]
[310895050,1704804643262,-1806.87607282,0.00023,2]
[310895051,1704804643274,-4332.30694093,0.00023,2]
[310895052,1704804643284,-1561.6614768,0.00023,2]
[310895053,1704804643295,-3043.39533062,0.00023,2]
[310895054,1704804643306,-259.67122516,0.00023,2]
[310895055,1704804643316,-10010.52,0.00023,2]
[310895056,1704804643332,-443.4506406,0.00023,2]
[310895057,1704804643343,-1568.1391407,0.00023,2]
[310895060,1704804643365,-266.6265652,0.00023,2]
[310895062,1704804643514,-370.98153674,0.00022794,2]
[310895067,1704804645783,-328.70690995,0.00022698,2]
[310895068,1704804645969,-886.64229292,0.00022698,2]
[310895069,1704804645979,-155.96491454,0.00022794,2]
[310895070,1704804645989,-156.46848853,0.00022794,2]
[310895071,1704804645999,-607.98912864,0.00022999,2]
[310895072,1704804646135,-7153.80588854,0.00022999,2]
[310895073,1704804646144,-3116.08999966,0.00023,2]
[310895074,1704804647614,1000.0,0.00021755,2]
[310895075,1704804648306,-233.57461259,0.00022793,2]
[310895076,1704804648316,-188.51594884,0.00022793,2]
[310895077,1704804648910,943.17158332,0.00020698,5]
[310895078,1704804654656,472.06,0.00022616,2]
[310895079,1704804677580,263.4,0.00022326,2]
[310895080,1704804692353,2000.0,0.00022326,2]
[310895081,1704804709258,10363.29,0.0002217,2]
[310895082,1704804713766,253.31,0.0002217,10]
[310895083,1704804719415,4924.29,0.0002217,2]
[310895088,1704804742980,200.0,0.00022103,2]
[310895089,1704804801661,226.45,0.00022031,2]
[310895090,1704804815828,200.0,0.00021921,30]
[310895091,1704804815866,315.2137126,0.00021921,30]
[310895097,1704804898333,427.52,0.00021919,2]
[310895098,1704804898582,427.52,0.00022035,2]
[310895099,1704804898744,427.52,0.0002215,2]
[310895100,1704804898951,427.52,0.00022265,2]
[310895101,1704804899191,427.52,0.00022381,2]
[310895102,1704804899429,427.52,0.00022496,2]
[310895103,1704804899643,427.52,0.00022611,2]
[310895104,1704804905375,170.87,0.00021895,2]
[310895105,1704804907728,159.01,0.00022114,2]
[310895106,1704804910749,158.73,0.00022043,2]
[310895107,1704804910950,158.73,0.00022147,2]
[310895108,1704804911184,158.73,0.00022252,2]
[310895109,1704804911398,158.73,0.00022356,2]
[310895110,1704804911669,158.73,0.00022461,2]
[310895111,1704804911850,158.73,0.00022565,2]
[310895112,1704804922173,274.14,0.00019924,2]
[310895113,1704804922469,274.14,0.00022188,2]
[310895114,1704804948453,351.83,0.00022,2]
[310895115,1704804972746,603.0,0.00021838,2]
[310895116,1704804988127,200.0,0.00021838,2]
[310895117,1704805021150,530.21,0.00021825,2]
[310895118,1704805021252,2529.5557902,0.0002189,2]
[310895119,1704805028747,150.0,0.00021813,2]
[310895120,1704805076963,1993.8787875,0.00022562,2]
[310895121,1704805092592,2215.31203769,0.00022,2]
[310895122,1704805093039,504.31,0.00021807,2]
[310895123,1704805095242,772.6,0.00021807,2]
[310895124,1704805155602,2000.0,0.00021789,2]
[310895125,1704805165585,371.98279314,0.00022567,2]
[310895126,1704805203431,1329.252525,0.00022556,2]
[310895127,1704805204073,23900.0,0.00021736,2]
[310895128,1704805204750,1329.25252498,0.00022582,2]
[310895129,1704805206010,655.37019259,0.00022608,2]
[310895130,1704805222897,215.56,0.00021731,2]
[310895131,1704805241529,1353.7176,0.00022555,2]
[310895132,1704805242548,1249.04,0.00021892,2]
[310895133,1704805247363,271.72,0.00021718,2]
[310895134,1704805248717,156.33,0.00021718,2]
[310895135,1704805286364,371.98279312,0.00022567,2]
[310895136,1704805310982,1201.39604646,0.000226,2]
[310895137,1704805316161,155.0,0.000226,2]
[310895138,1704805319721,937.45686224,0.00022567,2]
[310895139,1704805320806,265.84,0.00021742,2]
[310895140,1704805326368,214.76,0.00021746,2]
[310895141,1704805326537,2500.0,0.00022556,2]
[310895142,1704805332495,155.0,0.000226,2]
[310895143,1704805332984,224.62744415,0.00022556,2]
[310895144,1704805334612,224.62744412,0.00022582,2]
[310895145,1704805335205,162.07,0.0002196,2]
[310895146,1704805340419,2027.86180991,0.000226,2]
[310895147,1704805367311,286.33,0.00019803,2]
[310895148,1704805367679,286.33,0.00022067,2]
[310895149,1704805371210,2250.0,0.00022,3]
[310895150,1704805379748,250.0,0.00021715,2]
[310895151,1704805394240,197.33,0.00021715,2]
[310895152,1704805394563,197.33,0.00021829,2]
[310895153,1704805394765,197.33,0.00021943,2]
[310895154,1704805394976,197.33,0.00022058,2]
[310895155,1704805395179,197.33,0.00022172,2]
[310895156,1704805395391,197.33,0.00022286,2]
[310895157,1704805395625,197.33,0.00022401,2]
[310895158,1704805419334,210.76303136,0.00022455,2]
[310895159,1704805424291,210.76303135,0.00022478,2]
[310895160,1704805456776,158.81,0.00021822,2]
[310895161,1704805456994,158.81,0.00021964,2]
[310895162,1704805457219,158.81,0.00022107,2]
[310895163,1704805457476,158.81,0.00022249,2]
[310895164,1704805457714,158.81,0.00022391,2]
[310895165,1704805459068,696.50758074,0.00022501,2]
[310895166,1704805462016,155.0,0.00022501,2]
[310895167,1704805468577,575.83,0.00021643,2]
[310895168,1704805472669,418.76500977,0.00022501,2]
[310895169,1704805489579,523.74198723,0.00022501,2]
[310895170,1704805542795,470.68,0.00021635,2]
[310895171,1704805566413,185.5699508,0.00022,2]
[310895172,1704805582115,523.74198723,0.00022501,2]
[310895173,1704805598445,627.9446,0.00022455,2]
[310895174,1704805638722,444.92,0.00021638,2]
[310895175,1704805662360,2000.0,0.00021632,2]
[310895176,1704805700402,2478.0,0.00022444,2]
[310895177,1704805733543,2605.49881087,0.00022501,2]
[310895178,1704805736560,-210.76303135,0.00022502,2]
[310895179,1704805742099,-500.0,0.00022502,2]
[310895180,1704805743464,-500.0,0.00022502,2]
[310895181,1704805747602,-500.0,0.00022502,2]
[310895182,1704805749711,150.0,0.00022501,2]